bitfinex-derivatives/quotes_SOLF0:USTF0_20240829
["timestamp","ask_amount","ask_price","bid_price","bid_amount"]
[1724944682720,0.0495283,146.29,146.27,0.05168219]
[1724944683410,3.4173,146.28,146.27,0.05168219]
[1724944683919,36.2073,146.28,146.27,0.05168219]
[1724944684216,32.79,146.28,146.19,2.98338036]
[1724944684517,3.4185,146.23,146.2,3.419]
[1724944685108,3.46774228,146.23,146.2,3.46485372]
[1724944685706,3.46774228,146.23,146.2,0.04585372]
[1724944685707,0.04924228,146.23,146.2,0.04585372]
[1724944686810,3.4188,146.21,146.2,0.04585372]
[1724944688211,3.4198,146.17,146.15,2.98929339]
[1724944688817,32.79,146.22,146.15,2.98929339]
[1724944689016,0.05118294,146.2,146.17,0.05217239]
[1724944689716,0.05118294,146.2,146.17,3.47187239]
[1724944690614,0.05118294,146.2,146.17,0.05217239]
[1724944691014,0.05118294,146.2,146.17,3.04182451]
[1724944691211,3.47028294,146.2,146.17,3.04182451]
[1724944691616,0.05118294,146.2,146.17,3.04182451]
[1724944691811,0.05118294,146.2,146.17,3.47177239]
[1724944692017,0.05118294,146.2,146.17,0.05217239]
[1724944692809,3.47028294,146.2,146.17,0.05217239]
[1724944693720,3.4193,146.19,146.17,0.05217239]
[1724944693917,0.05118294,146.2,146.17,0.05217239]
[1724944696121,3.4195,146.18,146.17,0.05217239]
[1724944699227,29.6995,146.18,146.17,0.05217239]
[1724944702831,26.28,146.18,146.11,5.5]
[1724944703027,2.6699,146.19,146.05,26.28]
[1724944703028,26.28,146.13,146.05,26.28]
[1724944703229,26.28,146.13,146.06,2.99914874]
[1724944703437,26.28,146.13,146.05,5.5]
[1724944703628,26.28,146.12,146.06,2.99914874]
[1724944703825,26.28,146.12,146.08,0.02979601]
[1724944704124,0.04938366,146.1,146.08,0.02979601]
[1724944704436,3.4216,146.09,146.08,0.02979601]
[1724944704928,26.32938366,146.1,146.03,3.00179918]
[1724944705126,26.32938366,146.1,146.01,29.71666115]
[1724944705127,26.32938366,146.1,146.01,5.5]
[1724944705331,1.2831,146.11,146.02,3.00381265]
[1724944705332,26.28,146.08,146.02,3.00381265]
[1724944705522,3.4229,146.04,146.0,3.4236]
[1724944706030,0.04887535,146.03,146.0,3.4236]
[1724944706233,3.47197535,146.03,145.98,5.5]
[1724944706426,0.04887535,146.03,145.98,5.5]
[1724944706828,3.4237,146.01,145.97,2.6638]
[1724944707331,0.04887535,146.03,145.96,5.34]
[1724944707631,3.34773861,146.04,145.96,8.7645]
[1724944707632,3.4239,146.0,145.96,8.7645]
[1724944708023,3.424,145.99,145.96,5.34]
[1724944708224,0.04328937,146.01,145.96,8.7645]
[1724944708636,3.4239,146.0,145.96,8.7645]
[1724944709223,3.4239,146.0,145.96,3.4245]
[1724944709528,3.424,145.99,145.96,3.4245]
[1724944710330,3.424,145.99,145.95,3.4248]
[1724944710632,0.04941614,145.98,145.93,1.362]
[1724944710833,0.04941614,145.98,145.93,6.702]
[1724944712533,0.04941614,145.98,145.96,3.4247]
[1724944712733,0.04941614,145.98,145.93,6.702]
[1724944713227,0.04941614,145.98,145.96,3.4247]
[1724944713633,0.04941614,145.98,145.93,6.702]
[1724944713829,3.47371614,145.98,145.95,3.4248]
[1724944714026,0.04941614,145.98,145.93,6.702]
[1724944715631,0.04941614,145.98,145.97,3.4245]
[1724944715842,0.04941614,145.98,145.93,6.702]
[1724944716145,3.4246,145.97,145.94,3.425]
[1724944717632,3.4247,145.96,145.93,3.4253]
[1724944718235,3.4249,145.95,145.92,1.3402]
[1724944718435,0.04803085,145.95,145.92,1.3402]
[1724944718639,3.4253,145.94,145.91,3.4257]
[1724944718826,0.04803085,145.95,145.88,38.2]
[1724944719230,3.4255,145.93,145.9,3.426]
[1724944719835,0.04803085,145.95,145.89,3.4263]
[1724944720036,0.05017206,145.93,145.86,5.34]
[1724944720435,3.426,145.91,145.88,3.4264]
[1724944720835,0.05017206,145.93,145.85,5.34]
[1724944721134,3.47689992,145.9,145.85,5.34]
[1724944721634,3.47689992,145.9,145.86,3.4269]
[1724944721829,32.86,145.89,145.82,3.8408]
[1724944722036,0.04901459,145.87,145.82,3.8408]
[1724944722243,0.04901459,145.87,145.83,3.4277]
[1724944722437,3.47601459,145.87,145.83,3.4277]
[1724944722637,0.04901459,145.87,145.82,5.9809]
[1724944722834,0.04901459,145.87,145.82,2.553]
[1724944725735,3.4271,145.86,145.82,3.4279]
[1724944725934,0.04901459,145.87,145.79,5.34]
[1724944726139,0.04598692,145.84,145.79,5.34]
[1724944726338,0.04598692,145.84,145.81,3.4281]
[1724944726545,0.04598692,145.84,145.79,5.34]
[1724944726742,3.4264,145.89,145.81,32.86]
[1724944726940,3.4264,145.89,145.82,1.3319]
[1724944727140,32.86,145.91,145.82,1.3319]
[1724944727343,5.34,145.93,145.82,1.3319]
[1724944727642,32.86,145.9,145.82,1.3319]
[1724944727845,0.0499521,145.87,145.85,0.04571334]
[1724944728645,0.0499521,145.87,145.86,3.427]
[1724944730744,26.31,145.94,145.89,3.4263]
[1724944731138,3.4255,145.93,145.84,31.65]
[1724944731337,3.4255,145.93,145.89,3.4262]
[1724944731748,3.47106626,145.92,145.9,0.04945131]
[1724944732154,0.04546626,145.92,145.9,0.04945131]
[1724944732638,3.4259,145.91,145.9,0.04945131]
[1724944733045,3.4263,145.9,145.84,5.34]
[1724944733348,26.31,145.92,145.84,5.34]
[1724944733542,26.31,145.92,145.87,3.4266]
[1724944733942,26.31,145.92,145.86,3.427]
[1724944734146,0.05093103,145.91,145.88,0.04569825]
[1724944734448,3.4263,145.9,145.88,0.04569825]
[1724944734745,0.05093103,145.91,145.88,0.04569825]
[1724944735542,3.47683103,145.91,145.88,3.47209825]
[1724944735944,3.47683103,145.91,145.88,0.04569825]
[1724944735945,0.05093103,145.91,145.88,0.04569825]
[1724944736150,0.05093103,145.91,145.9,3.4261]
[1724944736351,0.05093103,145.91,145.88,0.04569825]
[1724944736749,3.47693103,145.91,145.88,3.47209825]
[1724944737645,0.05093103,145.91,145.89,3.4261]
[1724944737843,0.05093103,145.91,145.88,26.35569825]
[1724944738246,0.05093103,145.91,145.9,3.4261]
[1724944738650,6.8447,146.07,145.88,26.35569825]
[1724944738945,26.31,145.99,145.89,6.4271]
[1724944739645,0.04459289,145.95,145.93,0.05244652]
[1724944740541,26.35459289,145.95,145.93,0.05244652]
[1724944740947,3.4252,145.94,145.93,0.05244652]
[1724944741340,3.4259,145.92,145.89,5.16]
[1724944741544,26.31,145.93,145.89,5.16]
[1724944741749,26.31,145.93,145.85,5.16]
[1724944742045,3.4258,145.92,145.85,5.16]
[1724944742243,26.31,145.93,145.85,5.16]
[1724944742450,0.04381741,145.9,145.88,0.04493515]
[1724944742843,3.47001741,145.9,145.88,0.04493515]
[1724944743359,0.04381741,145.9,145.88,0.04493515]
[1724944744254,3.47011741,145.9,145.88,0.04493515]
[1724944744446,0.04381741,145.9,145.88,0.04493515]
[1724944744646,3.4263,145.89,145.88,0.04493515]
[1724944745953,29.7363,145.89,145.88,0.04493515]
[1724944746550,3.4277,145.84,145.79,1.369]
[1724944746849,26.31,145.85,145.79,6.529]
[1724944747051,29.7374,145.85,145.82,3.4278]
[1724944747553,0.0493898,145.85,145.82,3.4278]
[1724944748261,3.4766898,145.85,145.82,3.4278]
[1724944748552,0.0493898,145.85,145.79,6.529]
[1724944748748,0.0493898,145.85,145.8,26.31]
[1724944748946,0.0493898,145.85,145.81,2.5188]
[1724944749166,0.0493898,145.85,145.84,3.4275]
[1724944749853,0.0493898,145.85,145.81,2.5188]
[1724944750563,0.0493898,145.85,145.84,3.4275]
[1724944751760,0.0493898,145.85,145.83,3.4277]
[1724944753554,0.0493898,145.85,145.81,2.5188]
[1724944754958,0.0493898,145.85,145.84,3.4275]
[1724944756157,0.0493898,145.85,145.81,2.5188]
[1724944756754,0.0493898,145.85,145.83,3.4275]
[1724944757554,0.0493898,145.85,145.79,1.369]
[1724944757751,3.4275,145.84,145.8,5.16]
[1724944757953,3.4275,145.84,145.81,3.4281]
[1724944758962,3.4767898,145.85,145.82,3.428]
[1724944759368,0.0493898,145.85,145.79,6.529]
[1724944759858,3.4767898,145.85,145.82,3.428]
[1724944760665,0.0493898,145.85,145.83,3.4277]
[1724944761966,0.0493898,145.85,145.84,3.4275]
[1724944764266,0.0493898,145.85,145.79,35.5809]
[1724944764864,0.0493898,145.85,145.84,3.4272]
[1724944766670,27.6842,145.93,145.84,5.02]
[1724944767067,3.4257,145.91,145.84,5.02]
[1724944767280,1.2998,145.94,145.91,3.4255]
[1724944767683,1.34980947,145.94,145.91,3.47492687]
[1724944767981,4.77480947,145.94,145.91,3.47492687]
[1724944768984,0.05000947,145.94,145.93,3.4251]
[1724944769382,0.05000947,145.94,145.92,3.4252]
[1724944769578,3.47490947,145.94,145.91,0.04942687]
[1724944770080,3.47490947,145.94,145.91,3.47482687]
[1724944771081,0.05000947,145.94,145.91,0.04942687]
[1724944772281,0.05000947,145.94,145.93,3.4251]
[1724944775184,0.05000947,145.94,145.91,0.04942687]
[1724944775382,26.36000947,145.94,145.91,0.04942687]
[1724944775585,29.7353,145.92,145.91,0.04942687]
[1724944775778,26.31,145.92,145.81,2.5607]
[1724944775983,26.31,145.87,145.81,2.5607]
[1724944776183,26.31,145.87,145.82,3.4276]
[1724944776383,26.31,145.87,145.81,1.2559]
[1724944776786,3.47836248,145.85,145.82,3.4276]
[1724944777283,3.4272,145.84,145.82,3.4276]
[1724944777486,0.05126248,145.85,145.83,3.4274]
[1724944779685,0.05126248,145.85,145.82,3.4276]
[1724944779879,0.05126248,145.85,145.81,27.5659]
[1724944780081,0.05126248,145.85,145.82,26.31]
[1724944780285,0.05126248,145.85,145.84,3.4272]
[1724944780883,1.2794,145.93,145.88,3.426]
[1724944781090,27.5894,145.93,145.84,26.31]
[1724944781291,27.5894,145.93,145.85,5.02]
[1724944781489,27.5894,145.93,145.84,26.31]
[1724944781689,27.5894,145.93,145.85,5.02]
[1724944781889,3.4766615,145.9,145.88,0.04559154]
[1724944782091,0.0507615,145.9,145.88,0.04559154]
[1724944782290,0.0507615,145.9,145.89,3.426]
[1724944784695,0.0507615,145.9,145.88,3.47169154]
[1724944785100,0.0507615,145.9,145.88,0.04559154]
[1724944785301,3.426,145.89,145.88,0.04559154]
[1724944794104,29.736,145.89,145.88,0.04559154]
[1724944794709,29.736,145.89,145.82,3.4275]
[1724944794710,3.4271,145.85,145.82,3.4275]
[1724944794896,3.4271,145.85,145.81,6.2759]
[1724944795096,3.4271,145.85,145.82,6.44530266]
[1724944795296,3.4271,145.85,145.81,6.2759]
[1724944795607,3.4271,145.85,145.82,3.01801872]
[1724944795801,3.47114336,145.85,145.82,3.01801872]
[1724944796107,3.47114336,145.85,145.83,3.4274]
[1724944796301,0.04404336,145.85,145.81,6.2759]
[1724944796508,0.04404336,145.85,145.82,3.01771502]
[1724944797206,0.04404336,145.85,145.81,6.2759]
[1724944797398,0.04404336,145.85,145.84,3.4272]
[1724944797805,3.47104336,145.85,145.83,3.4273]
[1724944799909,0.04404336,145.85,145.81,6.2759]
[1724944800101,0.04404336,145.85,145.82,3.0171501]
[1724944800302,3.47114336,145.85,145.83,3.4273]
[1724944800705,0.04404336,145.85,145.81,6.2759]
[1724944800902,0.04404336,145.85,145.84,3.4272]
[1724944801109,0.04404336,145.85,145.81,6.2759]
[1724944801303,0.04404336,145.85,145.82,3.01780877]
[1724944802807,3.4272,145.84,145.81,3.4277]
[1724944803010,0.04404336,145.85,145.81,3.4277]
[1724944803413,26.35404336,145.85,145.82,3.01798551]
[1724944803610,26.35404336,145.85,145.78,7.95798551]
[1724944803808,26.35404336,145.85,145.77,1.3187]
[1724944803809,3.4278,145.82,145.79,3.01798551]
[1724944804108,3.47099099,145.82,145.79,3.4282]
[1724944804313,3.47099099,145.82,145.8,3.01798551]
[1724944804517,3.47099099,145.82,145.8,3.4281]
[1724944804715,0.04319099,145.82,145.81,3.01798551]
[1724944805014,0.04319099,145.82,145.79,3.01798551]
[1724944805315,0.04319099,145.82,145.8,3.4279]
[1724944805904,3.47079099,145.82,145.81,3.01975856]
[1724944806412,3.428,145.81,145.77,1.3187]
[1724944806802,3.428,145.81,145.78,3.4284]
[1724944807411,3.47079099,145.82,145.79,3.4283]
[1724944807605,3.47079099,145.82,145.79,6.45062972]
[1724944807804,3.47079099,145.82,145.79,3.4283]
[1724944808607,0.04319099,145.82,145.8,3.4281]
[1724944809813,3.47089099,145.82,145.79,3.4282]
[1724944810006,0.04319099,145.82,145.77,1.3187]
[1724944810207,0.04319099,145.82,145.77,4.34079669]
[1724944810411,0.04319099,145.82,145.78,3.02209669]
[1724944810613,0.04319099,145.82,145.77,4.34079669]
[1724944810809,3.4279,145.81,145.78,3.4284]
[1724944811412,3.4279,145.81,145.79,3.0220765]
[1724944812317,3.4281,145.8,145.79,3.0220765]
[1724944812620,0.04319099,145.82,145.78,3.0220765]
[1724944813111,0.04319099,145.82,145.75,31.25]
[1724944813309,0.0520177,145.8,145.79,3.4282]
[1724944814115,0.0520177,145.8,145.79,6.45152995]
[1724944818122,0.0520177,145.8,145.79,3.4282]
[1724944820719,0.0520177,145.8,145.79,6.45011668]
[1724944821317,27.6787,145.88,145.82,3.4275]
[1724944821917,3.4271,145.85,145.82,3.4275]
[1724944822416,0.04745182,145.85,145.83,3.4273]
[1724944823407,3.47455182,145.85,145.83,3.4273]
[1724944823613,0.04745182,145.85,145.82,3.4771208]
[1724944824015,3.47455182,145.85,145.82,3.4771208]
[1724944824218,3.47455182,145.85,145.83,3.4274]
[1724944824416,0.04745182,145.85,145.82,0.0495208]
[1724944824815,3.4273,145.84,145.82,3.4770208]
[1724944825217,3.4274,145.83,145.82,0.0495208]
[1724944825520,0.04745182,145.85,145.82,0.0495208]
[1724944826519,3.4273,145.84,145.82,3.4771208]
[1724944827219,3.4274,145.83,145.82,0.0495208]
[1724944829122,0.04745182,145.85,145.82,0.0495208]
[1724944829320,10.57745182,145.85,145.82,0.0495208]
[1724944829722,3.4273,145.84,145.82,0.0495208]
[1724944830423,3.4273,145.84,145.82,3.4771208]
[1724944830824,3.4273,145.84,145.82,0.0495208]
[1724944831028,10.53,145.84,145.82,0.0495208]
[1724944831213,0.04745182,145.85,145.82,0.0495208]
[1724944831416,10.57745182,145.85,145.82,0.0495208]
[1724944831613,3.4274,145.84,145.82,0.0495208]
[1724944832423,3.4274,145.83,145.82,0.0495208]
[1724944834434,13.9574,145.83,145.82,0.0495208]
[1724944836123,13.9582,145.8,145.78,3.4284]
[1724944836925,3.47210995,145.8,145.78,3.4284]
[1724944837319,0.04390995,145.8,145.79,3.4283]
[1724944837520,1.3687,145.88,145.79,18.49629046]
[1724944837725,4.7951,145.88,145.82,10.53]
[1724944838123,10.53,145.89,145.82,15.47]
[1724944838329,10.53,145.89,145.82,4.94]
[1724944838528,10.57945561,145.87,145.84,0.04435058]
[1724944838834,3.4269,145.85,145.84,0.04435058]
[1724944839030,10.53,145.86,145.84,0.04435058]
[1724944839534,10.57945561,145.87,145.84,0.04435058]
[1724944839933,14.00605561,145.87,145.84,3.47145058]
[1724944840227,3.47605561,145.87,145.84,3.47145058]
[1724944841033,0.04945561,145.87,145.85,3.4269]
[1724944841229,0.04945561,145.87,145.84,0.04435058]
[1724944841631,3.4269,145.85,145.84,0.04435058]
[1724944842337,29.7369,145.85,145.84,0.04435058]
[1724944842528,3.4276,145.82,145.8,3.02636527]
[1724944842723,26.31,145.85,145.79,3.02636527]
[1724944842930,3.4278,145.82,145.79,3.02636527]
[1724944843125,26.31,145.83,145.79,3.02636527]
[1724944843426,0.04477175,145.82,145.79,3.02636527]
[1724944843633,0.04477175,145.82,145.79,6.45466527]
[1724944843827,0.04477175,145.82,145.8,3.02636527]
[1724944844028,0.04477175,145.82,145.79,3.4283]
[1724944844236,0.04477175,145.82,145.8,3.02636527]
[1724944844835,3.47237175,145.82,145.8,3.02636527]
[1724944846334,0.04477175,145.82,145.8,6.45446527]
[1724944846531,0.04477175,145.82,145.8,3.4281]
[1724944846934,0.04477175,145.82,145.81,3.02736469]
[1724944847331,3.47237175,145.82,145.81,3.02736469]
[1724944847530,3.47237175,145.82,145.8,3.02736469]
[1724944851039,0.04477175,145.82,145.8,6.45536469]
[1724944851236,0.04477175,145.82,145.81,3.02736469]
[1724944851530,0.04477175,145.82,145.81,3.4279]
[1724944851931,27.6391,145.88,145.79,26.31]
[1724944852125,3.4266,145.87,145.84,3.427]
[1724944852834,3.4267,145.86,145.84,0.04554859]
[1724944853546,0.04624707,145.87,145.84,3.47254859]
[1724944853934,0.04624707,145.87,145.85,3.4268]
[1724944854135,0.04624707,145.87,145.84,0.04554859]
[1724944854437,0.04624707,145.87,145.85,3.02783439]
[1724944855131,0.04624707,145.87,145.86,3.4267]
[1724944855338,1.2728,145.94,145.86,3.02783439]
[1724944855641,3.4251,145.93,145.89,3.426]
[1724944855841,26.31,145.97,145.9,3.02451632]
[1724944856041,3.4247,145.95,145.91,3.4254]
[1724944856239,0.04989599,145.94,145.92,0.05023795]
[1724944856739,3.4251,145.93,145.92,0.05023795]
[1724944857541,29.7351,145.93,145.92,0.05023795]
[1724944857935,26.31,145.93,145.87,3.02429988]
[1724944858140,26.31,145.91,145.87,3.02429988]
[1724944858338,26.31,145.91,145.85,4.88]
[1724944858537,26.31,145.91,145.87,3.02647761]
[1724944858743,3.4259,145.9,145.86,6.45297761]
[1724944858939,0.05044781,145.89,145.87,0.04850808]
[1724944859139,0.05044781,145.89,145.87,3.47490808]
[1724944859639,0.05044781,145.89,145.87,0.04850808]
[1724944859847,3.4262,145.88,145.87,0.04850808]
[1724944860043,29.7362,145.88,145.87,0.04850808]
[1724944860550,29.7362,145.88,145.81,3.4276]
[1724944860551,26.31,145.88,145.81,4.88]
[1724944860753,26.31,145.88,145.82,3.02838459]
[1724944860949,26.31,145.88,145.78,31.1432113]
[1724944860950,26.31,145.88,145.8,4.88]
[1724944861244,26.31,145.88,145.83,3.02814061]
[1724944861443,3.427,145.85,145.83,3.02814061]
[1724944861648,3.427,145.85,145.82,3.02814061]
[1724944861941,3.4268,145.86,145.83,3.4274]
[1724944862148,0.0435874,145.87,145.84,3.0288175]
[1724944862342,0.0435874,145.87,145.81,3.0288175]
[1724944862648,0.0435874,145.87,145.82,3.0288175]
[1724944862945,0.0435874,145.87,145.8,4.88]
[1724944862946,0.0435874,145.87,145.81,3.0288175]
[1724944863148,0.0435874,145.87,145.82,3.0288175]
[1724944863342,3.4271,145.85,145.81,6.4565175]
[1724944863542,3.4271,145.85,145.82,3.0288175]
[1724944863738,3.4273,145.84,145.82,3.0288175]
[1724944863938,0.0435874,145.87,145.81,3.0288175]
[1724944864248,0.0435874,145.87,145.82,3.0288175]
[1724944864449,3.4268,145.86,145.83,3.0288175]
[1724944865244,3.4700874,145.87,145.83,6.4562175]
[1724944865445,0.0435874,145.87,145.84,3.0288175]
[1724944865843,3.4269,145.86,145.84,3.0288175]
[1724944866047,3.4269,145.86,145.83,3.0288175]
[1724944866249,0.0435874,145.87,145.83,3.0288175]
[1724944866450,3.4271,145.85,145.82,3.0288175]
[1724944866940,3.4271,145.85,145.81,4.88]
[1724944867138,3.4271,145.85,145.81,8.3077]
[1724944868847,3.4271,145.85,145.82,3.4275]
[1724944869149,0.0435874,145.87,145.81,4.88]
[1724944869544,0.0435874,145.87,145.81,8.3077]
[1724944869945,26.31,145.86,145.8,3.4281]
[1724944870150,0.04371886,145.84,145.8,3.4281]
[1724944870353,3.4275,145.83,145.8,3.4281]
[1724944871348,3.4277,145.82,145.81,3.0288251]
[1724944872256,3.4277,145.82,145.8,3.0288251]
[1724944872257,3.4279,145.81,145.8,3.0288251]
[1724944872452,26.35917635,145.82,145.75,3.0288251]
[1724944872646,0.05220862,145.8,145.76,3.0288251]
[1724944872853,3.4285,145.79,145.77,3.0288251]
[1724944873053,3.4285,145.79,145.78,3.0288251]
[1724944873248,3.4285,145.79,145.75,3.0288251]
[1724944873456,3.4285,145.79,145.76,3.0288251]
[1724944873657,3.4285,145.79,145.77,3.0288251]
[1724944873857,3.48040862,145.8,145.78,3.0288251]
[1724944874158,0.05220862,145.8,145.79,3.0288251]
[1724944874354,0.05220862,145.8,145.76,26.31]
[1724944874551,27.6565,145.86,145.77,3.07725302]
[1724944874754,26.31,145.86,145.78,3.0288251]
[1724944874961,26.31,145.86,145.79,3.0288251]
[1724944875252,3.4272,145.84,145.8,3.0288251]
[1724944875551,0.05252333,145.83,145.81,3.0789845]
[1724944875748,0.05252333,145.83,145.81,3.4778594]
[1724944875948,0.05252333,145.83,145.82,3.0288251]
[1724944876753,0.05252333,145.83,145.82,6.4564251]
[1724944877653,0.05252333,145.83,145.82,3.0288251]
[1724944878050,0.05252333,145.83,145.81,0.0501594]
[1724944878454,3.4276,145.82,145.81,0.0501594]
[1724944879556,3.48002333,145.83,145.81,0.0501594]
[1724944879744,0.05252333,145.83,145.81,3.07638295]
[1724944879945,0.05252333,145.83,145.81,0.0501594]
[1724944880157,3.4276,145.82,145.81,3.07638295]
[1724944880353,3.4276,145.82,145.81,0.0501594]
[1724944880947,3.47992333,145.83,145.81,3.07638295]
[1724944881456,0.05252333,145.83,145.81,3.07638295]
[1724944881763,0.05252333,145.83,145.81,0.0501594]
[1724944882056,0.05252333,145.83,145.82,6.45382355]
[1724944885158,0.05252333,145.83,145.82,3.02622355]
[1724944886559,3.47992333,145.83,145.82,3.02622355]
[1724944886758,0.05252333,145.83,145.81,0.0501594]
[1724944887964,0.05252333,145.83,145.82,3.02622355]
[1724944888164,0.05252333,145.83,145.82,7.84622355]
[1724944888460,0.05252333,145.83,145.81,0.0501594]
[1724944888867,0.05252333,145.83,145.82,3.4276]
[1724944889068,0.05252333,145.83,145.82,6.45046571]
[1724944890170,0.05252333,145.83,145.82,3.02286571]
[1724944890568,0.05252333,145.83,145.81,0.0501594]
[1724944891262,0.05252333,145.83,145.82,3.02286571]
[1724944891467,0.05252333,145.83,145.81,0.0501594]
[1724944891672,0.05252333,145.83,145.81,3.07302511]
[1724944891872,0.05252333,145.83,145.81,0.0501594]
[1724944892570,0.05252333,145.83,145.81,3.07386886]
[1724944895166,0.05252333,145.83,145.81,0.0501594]
[1724944895561,0.05252333,145.83,145.81,3.07375797]
[1724944896162,0.05252333,145.83,145.81,0.0501594]
[1724944896366,0.05252333,145.83,145.81,3.07375797]
[1724944896566,0.05252333,145.83,145.81,0.0501594]
[1724944896770,0.05252333,145.83,145.81,6.50165797]
[1724944896970,0.05252333,145.83,145.82,3.02359857]
[1724944897372,0.05252333,145.83,145.81,0.0501594]
[1724944897571,0.05252333,145.83,145.81,3.07375797]
[1724944898688,0.05252333,145.83,145.81,0.0501594]
[1724944898897,0.05252333,145.83,145.81,3.07439561]
[1724944899780,3.48012333,145.83,145.81,3.07439561]
[1724944900794,3.48012333,145.83,145.81,6.50229561]
[1724944900994,3.48012333,145.83,145.82,3.02423621]
[1724944901189,3.48012333,145.83,145.81,0.0501594]
[1724944901388,3.48012333,145.83,145.81,3.07439561]
[1724944901689,3.48012333,145.83,145.82,3.02423621]
[1724944901890,0.05252333,145.83,145.82,3.02423621]
[1724944902185,0.05252333,145.83,145.82,3.02480548]
[1724944902696,0.05252333,145.83,145.82,6.45240548]
[1724944908897,0.05252333,145.83,145.82,3.02480548]
[1724944909093,0.05252333,145.83,145.81,3.07496488]
[1724944909498,3.48012333,145.83,145.81,3.07496488]
[1724944909999,0.05252333,145.83,145.81,3.07496488]
[1724944910198,0.05252333,145.83,145.82,3.02480548]
[1724944910390,0.05252333,145.83,145.82,6.45240548]
[1724944915514,0.05252333,145.83,145.82,11.27240548]
[1724944915716,0.05252333,145.83,145.82,3.02480548]
[1724944916414,3.47992333,145.83,145.82,3.02480548]
[1724944916808,3.47992333,145.83,145.81,3.07496488]
[1724944917010,3.47992333,145.83,145.81,6.50276488]
[1724944917209,3.47992333,145.83,145.82,3.02480548]
[1724944918218,3.4276,145.82,145.81,0.0501594]
[1724944919408,3.4276,145.82,145.81,3.0757685]
[1724944919608,3.4276,145.82,145.81,0.0501594]
[1724944920013,3.4276,145.82,145.81,3.0757685]
[1724944920212,3.4276,145.82,145.81,0.0501594]
[1724944920618,3.4276,145.82,145.81,3.0757685]
[1724944920819,3.4276,145.82,145.81,0.0501594]
[1724944921511,3.4276,145.82,145.81,3.07575106]
[1724944921716,3.4276,145.82,145.81,0.0501594]
[1724944922625,26.31,145.82,145.76,3.4289]
[1724944922821,26.31,145.82,145.77,3.02559166]
[1724944923016,26.31,145.82,145.78,3.02559166]
[1724944923213,26.31,145.82,145.75,3.4291]
[1724944923522,0.04591208,145.8,145.76,3.02559166]
[1724944923716,3.4287,145.78,145.77,3.02559166]
[1724944924117,3.4285,145.79,145.77,3.02559166]
[1724944924316,0.04591208,145.8,145.72,26.31]
[1724944924618,0.04545321,145.77,145.72,26.31]
[1724944924825,0.04545321,145.77,145.73,3.02958599]
[1724944924826,3.47445321,145.77,145.73,3.02958599]
[1724944925122,0.04545321,145.77,145.74,3.02958599]
[1724944925317,3.429,145.76,145.75,3.02958599]
[1724944926522,26.31,145.76,145.73,3.02830464]
[1724944926721,0.0435652,145.76,145.69,26.31]
[1724944926921,3.4294,145.75,145.72,3.43]
[1724944927320,0.0435652,145.76,145.7,3.4303]
[1724944927517,3.4297,145.74,145.69,6.07413541]
[1724944927714,0.04551635,145.73,145.69,2.6668]
[1724944928024,0.04551635,145.73,145.67,1.3477]
[1724944928523,3.4303,145.71,145.68,3.4308]
[1724944929220,3.4306,145.7,145.67,4.7789]
[1724944929418,3.47893668,145.7,145.67,4.7789]
[1724944929620,0.04833668,145.7,145.67,1.3477]
[1724944929816,0.04833668,145.7,145.68,3.4308]
[1724944930016,0.04833668,145.7,145.67,1.3477]
[1724944930423,0.04833668,145.7,145.69,3.4307]
[1724944930920,0.04833668,145.7,145.67,1.3477]
[1724944931333,1.3579,145.79,145.69,26.31]
[1724944931524,26.31,145.81,145.73,26.31]
[1724944932033,4.86,145.84,145.73,26.31]
[1724944932034,26.31,145.8,145.73,3.4296]
[1724944932338,0.04606415,145.78,145.75,0.04327265]
[1724944932831,3.429,145.76,145.75,0.04327265]
[1724944935020,3.4288,145.77,145.75,0.04327265]
[1724944935222,0.04606415,145.78,145.75,0.04327265]
[1724944935524,3.47486415,145.78,145.75,0.04327265]
[1724944936231,3.47486415,145.78,145.75,3.47257265]
[1724944936530,0.04606415,145.78,145.75,0.04327265]
[1724944937428,0.04606415,145.78,145.76,3.4289]
[1724944938626,0.04606415,145.78,145.75,3.47247265]
[1724944938932,0.04606415,145.78,145.75,0.04327265]
[1724944940125,3.429,145.76,145.75,0.04327265]
[1724944942022,29.739,145.76,145.75,0.04327265]